fUST/lending_fUST_20250530
["ID","MTS","AMOUNT","RATE_DAILY","PERIOD"]
[363054801,1748562642335,-430.0,0.00019452,2]
[363054803,1748562642344,-430.0,0.00019452,2]
[363054804,1748562642353,-430.0,0.00019452,2]
[363054806,1748562642363,-430.0,0.00019452,2]
[363054808,1748562642372,-430.0,0.00019452,2]
[363054810,1748562642382,-430.0,0.00019452,2]
[363054812,1748562642391,-430.0,0.00019452,2]
[363054814,1748562642400,-1157.6,0.00019452,2]
[363054816,1748562642410,-430.0,0.00019452,2]
[363054818,1748562642420,-430.0,0.00019452,2]
[363054821,1748562642429,-430.0,0.00019452,2]
[363054823,1748562642439,-430.0,0.00019452,2]
[363054825,1748562642448,-1083.16,0.00019452,2]
[363054827,1748562642457,-430.0,0.00019452,2]
[363054829,1748562642467,-1466.31,0.00019452,2]
[363054830,1748562642476,-430.0,0.00019452,2]
[363054833,1748562642486,-430.0,0.00019452,2]
[363054835,1748562642495,-976.99,0.00019452,2]
[363054836,1748562642504,-430.0,0.00019452,2]
[363054839,1748562642513,-430.0,0.00019452,2]
[363054841,1748562642528,-992.07,0.00019452,2]
[363054842,1748562642537,-430.0,0.00019452,2]
[363054844,1748562642547,-430.0,0.00019452,2]
[363054846,1748562642556,-2027.36,0.00019452,2]
[363054849,1748562642566,-430.0,0.00019452,2]
[363054850,1748562642576,-430.0,0.00019452,2]
[363054852,1748562642585,-430.0,0.00019452,2]
[363054854,1748562642594,-430.0,0.00019452,2]
[363054857,1748562642604,-488.3,0.00019452,2]
[363054858,1748562642613,-430.0,0.00019452,2]
[363054860,1748562642622,-1861.78,0.00019452,2]
[363054863,1748562642632,-561.79,0.00019452,2]
[363054865,1748562642641,-580.0,0.00019479,2]
[363054867,1748562642651,-220.71,0.00019507,2]
[363054869,1748562642661,-1703.25232935,0.00019521,2]
[363054871,1748562642671,-1343.33260042,0.00019626,2]
[363054872,1748562642680,-430.0,0.00019726,2]
[363054874,1748562642689,-430.0,0.00019726,2]
[363054876,1748562642699,-260.0,0.00019726,2]
[363054878,1748562642709,-197.45,0.00019726,2]
[363054880,1748562642719,-430.0,0.00019726,2]
[363054882,1748562642728,-503.95401713,0.00019726,2]
[363054884,1748562642737,-430.0,0.00019726,2]
[363054886,1748562642746,-591.25,0.00019726,2]
[363054888,1748562642756,-430.0,0.00019726,2]
[363054890,1748562642769,-430.0,0.00019726,2]
[363054893,1748562642778,-430.0,0.00019726,2]
[363054895,1748562642788,-462.8,0.00019726,2]
[363054897,1748562642798,-430.0,0.00019726,2]
[363054899,1748562642807,-430.0,0.00019726,2]
[363054901,1748562642817,-430.0,0.00019726,2]
[363054903,1748562642826,-462.08,0.00019726,2]
[363054905,1748562642835,-430.0,0.00019726,2]
[363054906,1748562642845,-430.0,0.00019726,2]
[363054908,1748562642854,-430.0,0.00019726,2]
[363054910,1748562642863,-430.0,0.00019726,2]
[363054912,1748562642872,-430.0,0.00019726,2]
[363054914,1748562642882,-430.0,0.00019726,2]
[363054917,1748562642891,-430.0,0.00019726,2]
[363054918,1748562642901,-430.0,0.00019726,2]
[363054920,1748562642910,-766.95,0.00019726,2]
[363054923,1748562642919,-430.0,0.00019726,2]
[363054925,1748562642930,-1136.77,0.00019726,2]
[363054926,1748562642939,-524.74,0.00019726,2]
[363054928,1748562642948,-3919.64,0.00019726,2]
[363054930,1748562642957,-430.0,0.00019726,2]
[363054932,1748562642967,-430.0,0.00019726,2]
[363054934,1748562642977,-530.91,0.00019726,2]
[363054936,1748562642986,-430.0,0.00019726,2]
[363054938,1748562642995,-215.33330762,0.00019726,2]
[363054940,1748562643005,-430.0,0.00019726,2]
[363054942,1748562643014,-507.06,0.00019726,2]
[363054944,1748562643027,-567.14,0.00019726,2]
[363054946,1748562643036,-430.0,0.00019726,2]
[363054948,1748562643045,-430.0,0.00019726,2]
[363054950,1748562643055,-1801.94,0.00019726,2]
[363054952,1748562643064,-520.78,0.00019726,2]
[363054954,1748562643073,-377.5202167,0.00019726,2]
[363054956,1748562643083,-430.0,0.00019726,2]
[363054958,1748562643092,-430.0,0.00019726,2]
[363054960,1748562643102,-430.0,0.00019726,2]
[363054962,1748562643111,-827.03,0.00019726,2]
[363054965,1748562643121,-1636.59,0.00019726,2]
[363054967,1748562643130,-430.0,0.00019726,2]
[363054969,1748562643140,-424.64294461,0.00019726,2]
[363054970,1748562643149,-1191.74,0.00019726,2]
[363054973,1748562643159,-430.0,0.00019726,2]
[363054975,1748562643168,-1292.84,0.00019726,2]
[363054977,1748562643178,-430.0,0.00019726,2]
[363054978,1748562643187,-430.0,0.00019726,2]
[363054980,1748562643197,-2713.56,0.00019726,2]
[363054983,1748562643207,-654.42,0.00019726,2]
[363054985,1748562643216,-442.75,0.00019726,2]
[363054986,1748562643225,-430.0,0.00019726,2]
[363054989,1748562643236,-924.53,0.00019726,2]
[363054991,1748562643250,-430.0,0.00019726,2]
[363054993,1748562643260,-430.0,0.00019726,2]
[363054995,1748562643273,-979.01,0.00019726,2]
[363054997,1748562643283,-3002.9,0.00019726,2]
[363054999,1748562643293,-430.0,0.00019726,2]
[363055001,1748562643303,-430.0,0.00019726,2]
[363055003,1748562643312,-572.95,0.00019726,2]
[363055005,1748562643323,-528.5,0.00019726,2]
[363055007,1748562643334,-430.0,0.00019726,2]
[363055009,1748562643343,-430.0,0.00019726,2]
[363055011,1748562643352,-430.0,0.00019726,2]
[363055013,1748562643362,-430.0,0.00019726,2]
[363055015,1748562643372,-1157.6,0.00019726,2]
[363055017,1748562643381,-430.0,0.00019726,2]
[363055019,1748562643391,-430.0,0.00019726,2]
[363055021,1748562643400,-430.0,0.00019726,2]
[363055024,1748562643411,-430.0,0.00019726,2]
[363055026,1748562643421,-1083.16,0.00019726,2]
[363055028,1748562643430,-430.0,0.00019726,2]
[363055030,1748562643440,-1466.31,0.00019726,2]
[363055032,1748562643450,-430.0,0.00019726,2]
[363055034,1748562643460,-976.99,0.00019726,2]
[363055036,1748562643469,-430.0,0.00019726,2]
[363055038,1748562643480,-430.0,0.00019726,2]
[363055040,1748562643489,-992.07,0.00019726,2]
[363055042,1748562643498,-430.0,0.00019726,2]
[363055044,1748562643507,-430.0,0.00019726,2]
[363055045,1748562643520,-2027.36,0.00019726,2]
[363055047,1748562643530,-430.0,0.00019726,2]
[363055049,1748562643539,-430.0,0.00019726,2]
[363055051,1748562643549,-430.0,0.00019726,2]
[363055053,1748562643559,-430.0,0.00019726,2]
[363055056,1748562643569,-488.3,0.00019726,2]
[363055058,1748562643580,-430.0,0.00019726,2]
[363055059,1748562643589,-1861.78,0.00019726,2]
[363055062,1748562643599,-1703.25232935,0.00019728,2]
[363055063,1748562643609,-409.0,0.00019806,2]
[363055066,1748562643619,-240.54056282,0.000199,2]
[363055068,1748562643628,-1703.25232935,0.00019934,2]
[363055070,1748562643637,-500.0,0.00019963,2]
[363055071,1748562643646,-430.0,0.0002,2]
[363055072,1748562643656,-834.0,0.0002,2]
[363055073,1748562643665,-2842.0,0.0002,2]
[363055074,1748562643674,-591.25,0.0002,2]
[363055075,1748562643683,-430.0,0.0002,2]
[363055076,1748562643692,-430.0,0.0002,2]
[363055077,1748562643701,-462.8,0.0002,2]
[363055078,1748562643710,-430.0,0.0002,2]
[363055079,1748562643719,-430.0,0.0002,2]
[363055080,1748562643728,-462.08,0.0002,2]
[363055081,1748562643737,-430.0,0.0002,2]
[363055082,1748562643747,-430.0,0.0002,2]
[363055083,1748562643756,-430.0,0.0002,2]
[363055084,1748562643765,-430.0,0.0002,2]
[363055085,1748562643776,-430.0,0.0002,2]
[363055086,1748562643785,-430.0,0.0002,2]
[363055087,1748562643794,-430.0,0.0002,2]
[363055088,1748562643803,-766.95,0.0002,2]
[363055089,1748562643812,-1136.77,0.0002,2]
[363055090,1748562643821,-524.74,0.0002,2]
[363055091,1748562643830,-3919.64,0.0002,2]
[363055092,1748562643839,-430.0,0.0002,2]
[363055093,1748562643848,-430.0,0.0002,2]
[363055094,1748562643857,-530.91,0.0002,2]
[363055095,1748562643866,-430.0,0.0002,2]
[363055097,1748562643876,-507.06,0.0002,2]
[363055112,1748562643990,-567.14,0.0002,2]
[363055114,1748562644001,-430.0,0.0002,2]
[363055116,1748562644011,-430.0,0.0002,2]
[363055118,1748562644021,-1801.94,0.0002,2]
[363055120,1748562644031,-520.78,0.0002,2]
[363055122,1748562644040,-430.0,0.0002,2]
[363055124,1748562644050,-430.0,0.0002,2]
[363055126,1748562644059,-827.03,0.0002,2]
[363055128,1748562644070,-1636.59,0.0002,2]
[363055130,1748562644079,-1191.74,0.0002,2]
[363055132,1748562644089,-430.0,0.0002,2]
[363055134,1748562644099,-1292.84,0.0002,2]
[363055136,1748562644108,-430.0,0.0002,2]
[363055138,1748562644118,-430.0,0.0002,2]
[363055140,1748562644128,-2713.56,0.0002,2]
[363055142,1748562644137,-654.42,0.0002,2]
[363055144,1748562644147,-430.0,0.0002,2]
[363055146,1748562644156,-924.53,0.0002,2]
[363055148,1748562644165,-430.0,0.0002,2]
[363055150,1748562644175,-430.0,0.0002,2]
[363055152,1748562644184,-979.01,0.0002,2]
[363055153,1748562644194,-3002.9,0.0002,2]
[363055155,1748562644204,-430.0,0.0002,2]
[363055158,1748562644214,-430.0,0.0002,2]
[363055160,1748562644223,-572.95,0.0002,2]
[363055161,1748562644233,-185.31324985,0.0002,2]
[363055163,1748562644244,-430.0,0.0002,2]
[363055165,1748562644256,-430.0,0.0002,2]
[363055167,1748562644267,-528.92,0.0002,2]
[363055169,1748562644277,-1157.6,0.0002,2]
[363055172,1748562644287,-430.0,0.0002,2]
[363055173,1748562644296,-430.0,0.0002,2]
[363055175,1748562644306,-253.78,0.0002,2]
[363055177,1748562644316,-430.0,0.0002,2]
[363055180,1748562644327,-1083.16,0.0002,2]
[363055182,1748562644337,-430.0,0.0002,2]
[363055184,1748562644347,-1466.31,0.0002,2]
[363055186,1748562644357,-430.0,0.0002,2]
[363055188,1748562644366,-976.99,0.0002,2]
[363055189,1748562644376,-430.0,0.0002,2]
[363055191,1748562644386,-430.0,0.0002,2]
[363055193,1748562644395,-992.07,0.0002,2]
[363055195,1748562644404,-430.0,0.0002,2]
[363055197,1748562644414,-430.0,0.0002,2]
[363055199,1748562644424,-430.0,0.0002,2]
[363055201,1748562644433,-430.0,0.0002,2]
[363055203,1748562644442,-232.96,0.0002,2]
[363055205,1748562644452,-2027.36,0.0002,2]
[363055207,1748562644461,-430.0,0.0002,2]
[363055209,1748562644471,-488.3,0.0002,2]
[363055212,1748562644480,-430.0,0.0002,2]
[363055213,1748562644489,-1861.78,0.0002,2]
[363055215,1748562644499,-1703.25232935,0.00020141,2]
[363055217,1748562644508,-245.23,0.0002018,2]
[363055220,1748562644519,-873.63456,0.00020187,2]
[363055221,1748562644529,-160.0,0.00020249,2]
[363055223,1748562644538,-160.0,0.00020249,2]
[363055225,1748562644547,-160.0,0.00020249,2]
[363055227,1748562644557,-160.0,0.00020249,2]
[363055230,1748562644567,-160.0,0.00020249,2]
[363055232,1748562644577,-229.26895353,0.00020249,2]
[363055233,1748562644587,-12660.97845086,0.00020249,2]
[363055236,1748562644596,-212.70147903,0.00020249,2]
[363055237,1748562644606,-160.0,0.00020249,2]
[363055239,1748562644615,-160.0,0.00020249,2]
[363055241,1748562644624,-423.31762986,0.00020249,2]
[363055243,1748562644634,-842.5625,0.00020249,2]
[363055245,1748562644643,-160.0,0.0002025,2]
[363055247,1748562644653,-430.0,0.00020273,2]
[363055250,1748562644662,-591.25,0.00020273,2]
[363055251,1748562644672,-430.0,0.00020273,2]
[363055253,1748562644681,-430.0,0.00020273,2]
[363055256,1748562644691,-462.8,0.00020273,2]
[363055257,1748562644700,-430.0,0.00020273,2]
[363055259,1748562644709,-430.0,0.00020273,2]
[363055261,1748562644717,-462.08,0.00020273,2]
[363055263,1748562644726,-430.0,0.00020273,2]
[363055265,1748562644735,-430.0,0.00020273,2]
[363055267,1748562644744,-512.23,0.00020273,2]
[363055269,1748562644754,-430.0,0.00020273,2]
[363055271,1748562644763,-766.95,0.00020273,2]
[363055273,1748562644775,-1136.77,0.00020273,2]
[363055275,1748562644784,-524.74,0.00020273,2]
[363055277,1748562644793,-3919.64,0.00020273,2]
[363055279,1748562644802,-430.0,0.00020273,2]
[363055281,1748562644811,-430.0,0.00020273,2]
[363055283,1748562644820,-530.91,0.00020273,2]
[363055285,1748562644830,-430.0,0.00020273,2]
[363055287,1748562644839,-507.06,0.00020273,2]
[363055289,1748562644848,-567.14,0.00020273,2]
[363055291,1748562644858,-430.0,0.00020273,2]
[363055293,1748562644867,-1801.94,0.00020273,2]
[363055295,1748562644876,-520.78,0.00020273,2]
[363055297,1748562644885,-430.0,0.00020273,2]
[363055299,1748562644893,-430.0,0.00020273,2]
[363055302,1748562644902,-827.03,0.00020273,2]
[363055304,1748562644911,-1636.59,0.00020273,2]
[363055306,1748562644919,-1191.74,0.00020273,2]
[363055308,1748562644928,-1292.84,0.00020273,2]
[363055310,1748562644936,-430.0,0.00020273,2]
[363055312,1748562644945,-430.0,0.00020273,2]
[363055314,1748562644954,-430.0,0.00020273,2]
[363055316,1748562644962,-2713.56,0.00020273,2]
[363055318,1748562644970,-654.42,0.00020273,2]
[363055320,1748562644980,-430.0,0.00020273,2]
[363055322,1748562644989,-924.53,0.00020273,2]
[363055324,1748562644997,-430.0,0.00020273,2]
[363055326,1748562645005,-430.0,0.00020273,2]
[363055328,1748562645014,-979.01,0.00020273,2]
[363055330,1748562645024,-3002.9,0.00020273,2]
[363055332,1748562645033,-430.0,0.00020273,2]
[363055334,1748562645042,-430.0,0.00020273,2]
[363055336,1748562645051,-572.95,0.00020273,2]
[363055337,1748562645061,-430.0,0.00020273,2]
[363055339,1748562645070,-430.0,0.00020273,2]
[363055341,1748562645079,-155.0,0.00020273,2]
[363055343,1748562645088,-1157.6,0.00020273,2]
[363055345,1748562645096,-430.0,0.00020273,2]
[363055347,1748562645106,-155.92,0.00020273,2]
[363055349,1748562645114,-430.0,0.00020273,2]
[363055351,1748562645124,-1083.16,0.00020273,2]
[363055353,1748562645133,-430.0,0.00020273,2]
[363055355,1748562645142,-1466.31,0.00020273,2]
[363055357,1748562645152,-430.0,0.00020273,2]
[363055359,1748562645161,-976.99,0.00020273,2]
[363055361,1748562645170,-430.0,0.00020273,2]
[363055363,1748562645180,-992.07,0.00020273,2]
[363055365,1748562645189,-430.0,0.00020273,2]
[363055367,1748562645199,-430.0,0.00020273,2]
[363055369,1748562645208,-430.0,0.00020273,2]
[363055371,1748562645218,-430.0,0.00020273,2]
[363055373,1748562645227,-2027.36,0.00020273,2]
[363055375,1748562645237,-430.0,0.00020273,2]
[363055377,1748562645248,-488.3,0.00020273,2]
[363055379,1748562645258,-430.0,0.00020273,2]
[363055381,1748562645268,-1861.78,0.00020273,2]
[363055383,1748562645278,-537.913,0.00020298,2]
[363055385,1748562645287,-1703.25232935,0.00020348,3]
[363055387,1748562645296,-315.31411708,0.00020547,2]
[363055389,1748562645306,-591.25,0.00020547,2]
[363055390,1748562645315,-430.0,0.00020547,2]
[363055393,1748562645325,-430.0,0.00020547,2]
[363055394,1748562645335,-462.8,0.00020547,2]
[363055397,1748562645346,-430.0,0.00020547,2]
[363055398,1748562645355,-462.08,0.00020547,2]
[363055401,1748562645365,-430.0,0.00020547,2]
[363055403,1748562645375,-430.0,0.00020547,2]
[363055404,1748562645384,-766.95,0.00020547,2]
[363055406,1748562645393,-1136.77,0.00020547,2]
[363055408,1748562645403,-524.74,0.00020547,2]
[363055410,1748562645413,-3919.64,0.00020547,2]
[363055412,1748562645422,-430.0,0.00020547,2]
[363055414,1748562645432,-430.0,0.00020547,2]
[363055416,1748562645441,-530.91,0.00020547,2]
[363055418,1748562645450,-430.0,0.00020547,2]
[363055420,1748562645459,-507.06,0.00020547,2]
[363055422,1748562645468,-567.14,0.00020547,2]
[363055424,1748562645478,-430.0,0.00020547,2]
[363055426,1748562645487,-1801.94,0.00020547,2]
[363055428,1748562645497,-520.78,0.00020547,2]
[363055430,1748562645506,-430.0,0.00020547,2]
[363055432,1748562645516,-430.0,0.00020547,2]
[363055434,1748562645527,-827.03,0.00020547,2]
[363055436,1748562645537,-1636.59,0.00020547,2]
[363055438,1748562645545,-1191.74,0.00020547,2]
[363055440,1748562645555,-1292.84,0.00020547,2]
[363055442,1748562645564,-430.0,0.00020547,2]
[363055444,1748562645574,-430.0,0.00020547,2]
[363055446,1748562645583,-2713.56,0.00020547,2]
[363055448,1748562645592,-654.42,0.00020547,2]
[363055450,1748562645602,-430.0,0.00020547,2]
[363055452,1748562645611,-924.53,0.00020547,2]
[363055453,1748562645621,-430.0,0.00020547,2]
[363055456,1748562645630,-430.0,0.00020547,2]
[363055458,1748562645640,-979.01,0.00020547,2]
[363055460,1748562645649,-3002.9,0.00020547,2]
[363055461,1748562645659,-430.0,0.00020547,2]
[363055463,1748562645670,-430.0,0.00020547,2]
[363055466,1748562645686,-572.95,0.00020547,2]
[363055467,1748562645695,-430.0,0.00020547,2]
[363055469,1748562645705,-1157.6,0.00020547,2]
[363055471,1748562645714,-430.0,0.00020547,2]
[363055473,1748562645723,-430.0,0.00020547,2]
[363055475,1748562645732,-1083.16,0.00020547,2]
[363055477,1748562645741,-430.0,0.00020547,2]
[363055479,1748562645750,-1466.31,0.00020547,2]
[363055481,1748562645759,-430.0,0.00020547,2]
[363055483,1748562645770,-976.99,0.00020547,2]
[363055485,1748562645780,-340.78336282,0.00020547,2]
[363055487,1748562645789,-992.07,0.00020547,2]
[363055489,1748562645798,-430.0,0.00020547,2]
[363055491,1748562645807,-430.0,0.00020547,2]
[363055493,1748562645816,-430.0,0.00020547,2]
[363055495,1748562645826,-430.0,0.00020547,2]
[363055497,1748562645836,-2027.36,0.00020547,2]
[363055499,1748562645845,-208.73269205,0.00020547,2]
[363055501,1748562645854,-488.3,0.00020547,2]
[363055503,1748562645863,-430.0,0.00020547,2]
[363055505,1748562645873,-1861.78,0.00020547,2]
[363055507,1748562645882,-1703.25232935,0.00020555,3]
[363055509,1748562645892,-207.4,0.00020586,2]
[363055510,1748562645901,-300.0,0.00020586,2]
[363055512,1748562645910,-300.0,0.00020586,2]
[363055515,1748562645920,-300.0,0.00020586,2]
[363055516,1748562645929,-300.0,0.00020586,2]
[363055518,1748562645939,-300.0,0.00020586,2]
[363055520,1748562645949,-300.0,0.00020586,2]
[363055522,1748562645958,-300.0,0.00020586,2]
[363055525,1748562645967,-300.0,0.00020586,2]
[363055527,1748562645977,-300.0,0.00020586,2]
[363055528,1748562645987,-300.0,0.00020586,2]
[363055530,1748562645996,-300.0,0.00020586,2]
[363055533,1748562646006,-300.0,0.00020586,2]
[363055535,1748562646016,-300.0,0.00020586,2]
[363055537,1748562646029,-211.39840152,0.00020586,2]
[363055539,1748562646039,-300.0,0.00020586,2]
[363055540,1748562646049,-300.0,0.00020586,2]
[363055542,1748562646058,-1703.25232935,0.00020762,3]
[363055544,1748562646069,-591.25,0.00020821,2]
[363055547,1748562646079,-430.0,0.00020821,2]
[363055549,1748562646089,-430.0,0.00020821,2]
[363055550,1748562646099,-462.8,0.00020821,2]
[363055552,1748562646108,-412.25999562,0.00020821,2]
[363055554,1748562646117,-462.08,0.00020821,2]
[363055556,1748562646130,-430.0,0.00020821,2]
[363055570,1748562646241,-766.95,0.00020821,2]
[363055573,1748562646256,-1136.77,0.00020821,2]
[363055575,1748562646266,-524.74,0.00020821,2]
[363055577,1748562646279,-3919.64,0.00020821,2]
[363055579,1748562646289,-430.0,0.00020821,2]
[363055581,1748562646298,-430.0,0.00020821,2]
[363055583,1748562646308,-530.91,0.00020821,2]
[363055585,1748562646318,-507.06,0.00020821,2]
[363055587,1748562646328,-567.14,0.00020821,2]
[363055589,1748562646337,-430.0,0.00020821,2]
[363055591,1748562646347,-1801.94,0.00020821,2]
[363055593,1748562646356,-520.78,0.00020821,2]
[363055595,1748562646366,-430.0,0.00020821,2]
[363055597,1748562646376,-430.0,0.00020821,2]
[363055599,1748562646385,-827.03,0.00020821,2]
[363055601,1748562646395,-1636.59,0.00020821,2]
[363055603,1748562646404,-1191.74,0.00020821,2]
[363055605,1748562646413,-1292.84,0.00020821,2]
[363055607,1748562646423,-206.27537771,0.00020821,2]
[363055609,1748562646432,-430.0,0.00020821,2]
[363055611,1748562646441,-2713.56,0.00020821,2]
[363055613,1748562646451,-654.42,0.00020821,2]
[363055615,1748562646461,-430.0,0.00020821,2]
[363055617,1748562646471,-924.53,0.00020821,2]
[363055619,1748562646480,-430.0,0.00020821,2]
[363055621,1748562646490,-430.0,0.00020821,2]
[363055623,1748562646499,-979.01,0.00020821,2]
[363055625,1748562646509,-3002.9,0.00020821,2]
[363055627,1748562646520,-430.0,0.00020821,2]
[363055629,1748562646529,-430.0,0.00020821,2]
[363055631,1748562646538,-572.95,0.00020821,2]
[363055633,1748562646548,-430.0,0.00020821,2]
[363055635,1748562646558,-155.0,0.00020821,2]
[363055637,1748562646568,-1157.6,0.00020821,2]
[363055639,1748562646577,-430.0,0.00020821,2]
[363055641,1748562646587,-430.0,0.00020821,2]
[363055643,1748562646596,-1083.16,0.00020821,2]
[363055645,1748562646605,-430.0,0.00020821,2]
[363055647,1748562646615,-1466.31,0.00020821,2]
[363055649,1748562646624,-430.0,0.00020821,2]
[363055651,1748562646634,-976.99,0.00020821,2]
[363055653,1748562646643,-992.07,0.00020821,2]
[363055655,1748562646652,-430.0,0.00020821,2]
[363055657,1748562646662,-430.0,0.00020821,2]
[363055659,1748562646671,-430.0,0.00020821,2]
[363055661,1748562646680,-430.0,0.00020821,2]
[363055663,1748562646690,-2027.36,0.00020821,2]
[363055666,1748562646700,-488.3,0.00020821,2]
[363055668,1748562646710,-430.0,0.00020821,2]
[363055670,1748562646719,-1861.78,0.00020821,2]
[363055672,1748562646729,-240.54056279,0.0002085,2]
[363055674,1748562646738,-420.0,0.00020898,2]
[363055676,1748562646747,-501.38280864,0.00020956,2]
[363055677,1748562646756,-1703.25232935,0.00020969,4]
[363055679,1748562646766,-591.25,0.00021095,2]
[363055682,1748562646777,-430.0,0.00021095,2]
[363055684,1748562646786,-160.47251858,0.00021095,2]
[363055687,1748562646796,-462.8,0.00021095,2]
[363055688,1748562646805,-462.08,0.00021095,2]
[363055691,1748562646816,-430.0,0.00021095,2]
[363055693,1748562646825,-766.95,0.00021095,2]
[363055695,1748562646835,-1136.77,0.00021095,2]
[363055697,1748562646844,-524.74,0.00021095,2]
[363055698,1748562646854,-3919.64,0.00021095,2]
[363055701,1748562646863,-430.0,0.00021095,2]
[363055702,1748562646873,-430.0,0.00021095,2]
[363055704,1748562646882,-530.91,0.00021095,2]
[363055707,1748562646893,-507.06,0.00021095,2]
[363055708,1748562646902,-567.14,0.00021095,2]
[363055710,1748562646911,-430.0,0.00021095,2]
[363055713,1748562646921,-1801.94,0.00021095,2]
[363055715,1748562646930,-520.78,0.00021095,2]
[363055717,1748562646939,-261.63,0.00021095,2]
[363055719,1748562646948,-430.0,0.00021095,2]
[363055720,1748562646957,-827.03,0.00021095,2]
[363055722,1748562646967,-1636.59,0.00021095,2]
[363055724,1748562646976,-1191.74,0.00021095,2]
[363055726,1748562646986,-1292.84,0.00021095,2]
[363055728,1748562646995,-430.0,0.00021095,2]
[363055730,1748562647005,-2713.56,0.00021095,2]
[363055732,1748562647015,-654.42,0.00021095,2]
[363055734,1748562647026,-430.0,0.00021095,2]
[363055736,1748562647035,-924.53,0.00021095,2]
[363055739,1748562647046,-430.0,0.00021095,2]
[363055740,1748562647055,-430.0,0.00021095,2]
[363055743,1748562647064,-979.01,0.00021095,2]
[363055745,1748562647074,-3002.9,0.00021095,2]
[363055747,1748562647084,-430.0,0.00021095,2]
[363055749,1748562647093,-430.0,0.00021095,2]
[363055750,1748562647102,-572.95,0.00021095,2]
[363055752,1748562647111,-430.0,0.00021095,2]
[363055754,1748562647121,-1157.6,0.00021095,2]
[363055756,1748562647130,-430.0,0.00021095,2]
[363055758,1748562647140,-430.0,0.00021095,2]
[363055761,1748562647149,-1083.16,0.00021095,2]
[363055763,1748562647159,-430.0,0.00021095,2]
[363055765,1748562647168,-1466.31,0.00021095,2]
[363055766,1748562647177,-430.0,0.00021095,2]
[363055768,1748562647186,-976.99,0.00021095,2]
[363055770,1748562647197,-992.07,0.00021095,2]
[363055772,1748562647207,-430.0,0.00021095,2]
[363055774,1748562647217,-430.0,0.00021095,2]
[363055776,1748562647226,-430.0,0.00021095,2]
[363055778,1748562647235,-430.0,0.00021095,2]
[363055781,1748562647253,-2027.36,0.00021095,2]
[363055784,1748562647270,-488.3,0.00021095,2]
[363055786,1748562647285,-430.0,0.00021095,2]
[363055789,1748562647297,-1861.78,0.00021095,2]
[363055792,1748562647310,-600.0,0.00021164,2]
[363055793,1748562647324,-1703.25232935,0.00021176,4]
[363055794,1748562647339,-591.25,0.00021369,2]
[363055797,1748562647353,-430.0,0.00021369,2]
[363055799,1748562647366,-462.8,0.00021369,2]
[363055801,1748562647379,-462.08,0.00021369,2]